Cogmind - Beta 17.1 @@@ ROGUE MODE // 2026.09.11 @ 18:12:36 Player: cptwinky Result: Destroyed by 64-QC7(R) with Subdweller Machine Gun Performance ------------- Evolutions (0) 0 Regions Visited (2) 400 Robots Destroyed (34) 170 Value Destroyed (971) 971 Prototype IDs (0) 0 Alien Tech Used (0) 0 Bonus (0) 0 TOTAL SCORE: 1541 Bonus ------- None Cogmind --------- Core Integrity 0/250 Matter 283/300 Energy 98/100 System Corruption 0% Temperature Warm (144) Movement Rolling (120) Ox1 Location -10/Subcaves Parts ------- > --- POWER (1) -------- (None) > --- PROPULSION (2) --- Aluminum Leg Subdweller Monowheel > --- UTILITY (2) ------ Large Storage Unit Backup Plating I > --- WEAPON (2) ------- Subdweller Machine Gun Subdweller Machine Gun > --- INVENTORY (15) --- Light Nuclear Core Wheel Wheel Subdweller Monowheel Improved Heat Sink High-capacity Matter Pod (200) Structural Scanner Seismic Detector Backup Plating I Particle Gun Subdweller Machine Gun Subdweller Machine Gun Mining Laser Multitool Peak State ------------ > --- POWER ------------ Improved Ion Engine > --- PROPULSION ------- Aluminum Leg Subdweller Monowheel > --- UTILITY ---------- Large Storage Unit Backup Plating I > --- WEAPON ----------- Subdweller Laser Subdweller Machine Gun > --- INVENTORY -------- Light Nuclear Core Wheel Wheel Subdweller Monowheel Improved Heat Sink High-capacity Matter Pod Structural Scanner Seismic Detector Backup Plating I Particle Gun Subdweller Machine Gun Subdweller Machine Gun Mining Laser Multitool [Rating: 13] Favorites ----------- Power Ion Engine Engine Ion Engine Propulsion Aluminum Leg Treads Light Treads Leg Aluminum Leg Wheel Subdweller Monowheel Utility Large Storage Unit Device Seismic Detector Storage Large Storage Unit Protection Backup Plating I Weapon Medium Laser Energy Gun Medium Laser Ballistic Gun Light Assault Rifle Special Weapon Mining Laser Build | -11 -10 -10 ------- Run | Yrd Mat Sub Slots Evolved . | . . . Power . | . . . Propulsion . | . . . Utility . | . . . Weapon . | . . . Parts Attached 26 | 6 7 13 Power 3 | 1 . 2 Engine 3 | 1 . 2 Core . | . . . Reactor . | . . . Propulsion 5 | 2 . 3 Treads 2 | 2 . . Leg 2 | . . 2 Wheel 1 | . . 1 Hover . | . . . Flight . | . . . Utility 7 | 1 4 2 Device 2 | . 1 1 Storage 2 | 1 1 . Processor . | . . . Hackware . | . . . Protection 3 | . 2 1 Artifact . | . . . Weapon 11 | 2 3 6 Energy Gun 7 | 1 3 3 Energy Cannon . | . . . Ballistic Gun 3 | 1 . 2 Ballistic Cannon . | . . . Launcher . | . . . Special Weapon 1 | . . 1 Impact Weapon . | . . . Slashing Weapon . | . . . Piercing Weapon . | . . . Special Melee Weapon . | . . . Unidentified Prototypes . | . . . Parts Lost 8 | . 1 7 Power 2 | . . 2 Propulsion 2 | . . 2 Utility 1 | . . 1 Weapon 3 | . 1 2 Highest Loss Streak 2 | . 1 2 To Critical Strikes . | . . . Average Backups 13 | 4 12 14 Power 1 | . 1 1 Propulsion 2 | 2 3 3 Utility 5 | . 5 5 Weapon 3 | . 2 4 Tool/Special . | . . . Unused Backups 14 | . 1 13 Power 2 | . 1 1 Propulsion 3 | . . 3 Utility 3 | . . 3 Weapon 5 | . . 5 Tool/Special 1 | . . 1 Average Slot Usage (%) 99 | . 97 99 Engine 14 | . 14 14 Treads 11 | . 28 2 Leg 15 | . . 24 Device 3 | . . 4 Storage 14 | . 14 14 Protection 10 | . 11 9 Energy Gun 25 | . 26 25 Ballistic Gun 1 | . 1 1 Peak Build Rating 13 | 6 10 13 Average Rating 9 | 5 8 10 On Entrance 5 | . 6 10 Avg Prop Armor Cover (%) 8 | . . 8 Naked Turns . | . . . Heaviest Build 36 | 13 31 36 Greatest Support 40 | 40 40 40 Greatest Overweight (x) 1 | . . 1 Average Overweight (x) . | . . . Largest Inventory Capacity 15 | 8 15 15 Average Capacity 14 | 7 13 15 Most Carried 15 | 7 15 15 Average Carried 13 | 4 12 14 Final Capacity 15 | 8 15 15 Final Carried 15 | 7 15 14 Class Distribution -------------------- 92% | Mutant 7% | Scavenger-Mutant Dominant Class ---------------- Mutant | -10/Materials Mutant | -10/Subcaves Resources | -11 -10 -10 ----------- Run | Yrd Mat Sub Matter Collected 759 | 266 261 232 Remotely . | . . . Salvage Created 1261 | 110 635 516 Parts 87 | 8 37 42 Haulers Intercepted 1 | . 1 . Recyclers Shooed 1 | . 1 . Parts Field Recycled . | . . . Retrieved Matter . | . . . Parts Self-Destructed 7 | . . 7 Prevented . | . . . Parts Restored . | . . . Kills | -11 -10 -10 ------- Run | Yrd Mat Sub Combat Hostiles Destroyed 26 | . 14 12 Guns 26 | . 14 12 Classes Destroyed 8 | 2 4 2 Worker 1 | . 1 . Tunneler 4 | 4 . . Hauler 1 | . 1 . Recycler 2 | 1 1 . Swarmer 3 | . 3 . Grunt 11 | . 11 . Sentry 1 | . . 1 Subdweller 11 | . . 11 Best Kill Streak 3 | 2 3 2 Combat Bots Only 3 | . 3 2 Max Kills in Single Turn 1 | 1 1 1 Gunslinging . | . . . Exploded . | . . . Melee . | . . . Uniques/NPCs Destroyed . | . . . Combat | -11 -10 -10 -------- Run | Yrd Mat Sub Hostile Shots Fired 121 | . 54 67 Missed 35 | . 13 22 Hits 86 | . 41 45 Projectile 86 | . 41 45 Critical Strikes 3 | . 1 2 Damage Taken 1459 | . 470 989 Core 261 | . 98 163 Absorbed by Shields . | . . . Core Remaining (%) 100 | 100 . . Volleys Fired 102 | 15 36 51 Largest 2 | 2 2 2 Hottest 120 | 70 115 120 Shots Fired 196 | 30 72 94 Gun 188 | 30 72 86 Cannon . | . . . Launcher . | . . . Special 8 | . . 8 Kinetic 35 | 15 5 15 Thermal 161 | 15 67 79 Explosive . | . . . Electromagnetic . | . . . Robot Hit Streak 15 | 5 9 15 Robot Miss Streak 2 | 2 2 2 Penetration Max . | . . . Secondary Targets 2 | . 2 . Max Gunslinging Chain 1 | . 1 . Shots Hit Robots 139 | 20 47 72 Core Hits 54 | 5 27 22 Critical Kills . | . . . Critical Parts Destroyed 1 | 1 . . Critical Strikes 7 | 1 3 3 Burn 6 | . 3 3 Destroy 1 | 1 . . Melee Attacks . | . . . Impact . | . . . Slashing . | . . . Piercing . | . . . Sneak Attacks . | . . . Combat Hostiles . | . . . Follow-up Attacks . | . . . Damage Inflicted 2126 | 213 667 1246 Guns 2097 | 198 653 1246 Cannons . | . . . Explosions . | . . . Melee . | . . . Ramming 29 | 15 14 . Kinetic 415 | 110 28 277 Thermal 1682 | 88 625 969 Explosive . | . . . Electromagnetic . | . . . Impact . | . . . Slashing . | . . . Piercing . | . . . Highest Corruption . | . . . Average Corruption . | . . . Corruption Purged . | . . . Corruption Blocked . | . . . Overload Shots . | . . . Overflow Damage . | . . . Projectiles . | . . . Explosions . | . . . Melee . | . . . Knockbacks . | . . . Impact . | . . . Kinetic . | . . . Secondary . | . . . Self-Inflicted Damage . | . . . Shots . | . . . Rammed 7 | 3 4 . Targets Rammed 9 | 4 5 . Kicked . | . . . Crushed 2 | 1 1 . Highest Temperature 303 | 110 303 301 Average Temperature 76 | 49 87 59 Received Heat Transfer 690 | . 201 489 Siege Activations . | . . . Martial Activations . | . . . Shielding Activations . | . . . Robots Disrupted . | . . . Combat Hostiles . | . . . Robots Corrupted . | . . . Combat Hostiles . | . . . Parts Fried . | . . . Impact Corruptions . | . . . Robots Melted . | . . . Combat Hostiles . | . . . Parts Melted 11 | . 6 5 Heat Transferred 4069 | 259 1778 2032 Parts Sabotaged . | . . . Parts Stolen . | . . . Parts Stripped . | . . . Power Chain Reactions . | . . . Alert | -11 -10 -10 ------- Run | Yrd Mat Sub Maximum Alert Level . | . . . Low Security (%) 100 | 100 100 . Level 1 . | . . . Level 2 . | . . . Level 3 . | . . . Level 4 . | . . . Level 5 . | . . . High Security . | . . . Max Security . | . . . Peak Influence 167 | 5 167 . Initial 3 | . 3 . Average 68 | 1 83 . Influence Increases 492 | 25 447 20 Destroy 0b10 Robot/C 300 | . 280 20 Destroy 0b10 Robot/NC 40 | 25 15 . Destroy Leader 62 | . 62 . Successful Hack 28 | . 28 . Destroy Structure 2 | . 2 . Lose Combat Pursuer 60 | . 60 . Influence Decreases 492 | 20 341 131 Entered New Map 56 | . 2 54 Time Decay 426 | 20 329 77 Lost Part 10 | . 10 . Squads Dispatched 2 | . 2 . Investigation 1 | . 1 . Extermination . | . . . Reinforcement 1 | . 1 . Assault . | . . . Garrison . | . . . Intercept . | . . . Searches Triggered . | . . . Construction Impeded . | . . . Haulers Reinforced . | . . . Active Scanning Responses . | . . . Cargo Convoy Interrupts . | . . . Stealth | -11 -10 -10 --------- Run | Yrd Mat Sub Distress Signals 1 | . 1 . Communications Jammed . | . . . Distress Signals . | . . . Times Spotted 37 | . 22 15 Peak Tracking Total 4 | . 4 3 Tactical Retreats 5 | . 4 1 Traps | -11 -10 -10 ------- Run | Yrd Mat Sub Traps Triggered . | . . . Indirectly . | . . . Trap Hack Attempts . | . . . Triggered . | . . . Disarmed . | . . . Reprogrammed . | . . . Reused . | . . . Traps Extracted . | . . . Installed . | . . . Triggered . | . . . Machines | -11 -10 -10 ---------- Run | Yrd Mat Sub Machines Disabled . | . . . Max in Single Turn . | . . . Machines Repaired . | . . . Machines Dismantled . | . . . Machines Sabotaged . | . . . Overloaded Fab Kills . | . . . Hacking | -11 -10 -10 --------- Run | Yrd Mat Sub Machines Accessed 6 | . 6 . Terminals 5 | . 5 . Fabricators . | . . . Repair Stations 1 | . 1 . Recycling Units . | . . . Scanalyzers . | . . . Garrison Access . | . . . Total Hacks 15 | . 15 . Successful 6 | . 6 . Failed 9 | . 9 . Catastrophic . | . . . Database Lockouts . | . . . Manual 11 | . 11 . Terminals 12 | . 12 . Fabricators . | . . . Repair Stations 3 | . 3 . Recycling Units . | . . . Scanalyzers . | . . . Garrison Access . | . . . Terminal Hacks 2 | . 2 . Robot Analysis 1 | . 1 . Locate Traps 1 | . 1 . Fabricator Hacks . | . . . Repair Station Hacks 3 | . 3 . Refit 3 | . 3 . Recycling Unit Hacks . | . . . Scanalyzer . | . . . Garrison Access Hacks . | . . . Unauthorized Hacks 1 | . 1 . Terminals 1 | . 1 . Search 1 | . 1 . Fabricators . | . . . Repair Stations . | . . . Recycling Units . | . . . Scanalyzers . | . . . Garrison Access . | . . . Data Cores Recovered . | . . . Used . | . . . Hacking Detections 6 | . 6 . Full Trace Events . | . . . Feedback Events . | . . . Feedback Blocked . | . . . Robot Schematics Acquired . | . . . Robots Built . | . . . Authchips . | . . . Time . | . . . Total Robot Build Rating . | . . . Part Schematics Acquired . | . . . Parts Built . | . . . Authchips . | . . . Time . | . . . Total Part Build Rating . | . . . Part Studies Acquired . | . . . Parts Repaired . | . . . Time . | . . . Parts Recycled . | . . . Recycled Matter . | . . . Retrieved Matter . | . . . Retrieved Components . | . . . Parts Scanalyzed . | . . . Part Schematics Acquired . | . . . Parts Damaged . | . . . Bothacking | -11 -10 -10 ------------ Run | Yrd Mat Sub Used RIF Installer . | . . . Robots Hacked . | . . . Non-combat . | . . . Combat . | . . . Robot Hacks Applied . | . . . Relay Couplers Released . | . . . Fabnet Peak Effective % . | . . . Robots Rewired . | . . . Allies Hacked . | . . . Hacks Repelled . | . . . Allies | -11 -10 -10 -------- Run | Yrd Mat Sub Total Allies . | . . . Largest Group . | . . . Highest-Rated Group . | . . . Highest-Rated Ally . | . . . Total Orders . | . . . Ally Attacks . | . . . Total Damage . | . . . Kills . | . . . Allies Corrupted . | . . . Allies Melted . | . . . Intel | -11 -10 -10 ------- Run | Yrd Mat Sub Active Infowar (turns) 518 | . . 518 Seismic 518 | . . 518 Robot Analysis Total 1 | . 1 . Derelict Logs Recovered 2 | . . 2 Drone Launches . | . . . Drone Recoveries . | . . . Exploration | -11 -10 -10 ------------- Run | Yrd Mat Sub Turns Passed 2484 | 179 810 1495 Spaces Moved 1048 | 74 335 639 Core 5 | 5 . . Treads 469 | 69 335 65 Legs 527 | . . 527 Wheels 47 | . . 47 Hover . | . . . Flight . | . . . Fastest Speed 50 | 50 160 120 Average Speed 172 | 152 160 181 Slowest Speed 190 | 160 160 190 Overloaded Moves . | . . . Propulsion Burnouts . | . . . Robots Hopped . | . . . Potential Cave-ins . | . . . Cave-ins Triggered . | . . . Exploration Rate (%) 41 | 4 71 48 Regions Visited 2 Branch Regions 1 Pre-discovered Areas 2 | . . 2 Known Exits Taken . | . . . Unknown Exits Taken 2 | 1 1 . Scrap Searched . | . . . Spaces Dug . | . . . Terrain Destroyed . | . . . Melee . | . . . Projectile . | . . . AOE . | . . . Terrain Rammed . | . . . Walls Destroyed . | . . . Machines Disabled . | . . . Actions | -11 -10 -10 --------- Run | Yrd Mat Sub Total 1506 | 108 537 861 Wait 270 | 3 139 128 Move 1046 | 73 334 639 Hop . | . . . Pick Up 25 | 7 9 9 Fast Attach 9 | 6 1 2 Attach 7 | . 1 6 Detach 3 | . 2 1 Swap 22 | . 5 17 Drop 13 | . 5 8 Fire 102 | 15 36 51 Melee . | . . . Ram . | . . . Kick . | . . . Crush 9 | 4 5 . Escape Stasis . | . . . Rewire . | . . . Trap . | . . . Miscellaneous . | . . . Route ------- -11/Scrapyard -10/Materials (discovered 3 exits: [*Mat] / [*Min] / [*Sub]) -10/Subcaves (discovered 2 exits: [*Mat x2]) History --------- Turn | Location | Event 51 | -11/Scrapyard | Discovered new exit (range 15) 180 | -11/Scrapyard | Entered Materials 308 | -10/Materials | Build established: Mutant 555 | -10/Materials | Discovered new exit (range 10) 804 | -10/Materials | Discovered new exit (range 11) 974 | -10/Materials | Discovered new exit (range 4) 990 | -10/Materials | Entered Subcaves 998 | -10/Subcaves | Learned Materials terminal intel 1027 | -10/Subcaves | Learned location of Storage (-7) 1513 | -10/Subcaves | Learned location of Zion (-7) 1513 | -10/Subcaves | Met a Zionite searching for "candidates" 1936 | -10/Subcaves | Discovered new exit (range 13) 1976 | -10/Subcaves | Core integrity fell below 50% 2424 | -10/Subcaves | Discovered new exit (range 12) 2460 | -10/Subcaves | A Subdweller sparked back to life 2460 | -10/Subcaves | A Subdweller sparked back to life 2477 | -10/Subcaves | Core integrity fell below 20% 2485 | -10/Subcaves | Destroyed by 64-QC7(R) with Subdweller Machine Gun Last Messages --------------- 02314_ Sub. Laser destroyed. 02318_ 8Y-W9J(R) destroyed. 02326_ Acquired 27 matter. 02335_ Acquired Sub. Machine Gun. 02385_ Aluminum Leg destroyed. 02391_ Disposable Heat Sink melted. 02391_ ZM-58L(R) destroyed. 02396_ Acquired 16 matter. 02409_ IV-C9A(R) destroyed. 02414_ Acquired Sub. Machine Gun. 02415_ Acquired 4 matter. 02424_ EXIT=FOUND 02460_ WJ-4GQ(R) creaks and sparks as it begins to move. 02460_ 7O-YPT(R) creaks and sparks as it begins to move. 02475_ Disposable Heat Sink melted. 02475_ WJ-4GQ(R) destroyed. 02475_ Sub. Laser destroyed. 02476_ Critical hit (Meltdown: +300). 02477_ Subatomizers dissect the Sub. Monowheel. 02480_ Imp. Ion Engine destroyed. Map ----- +----------------------------------------------------+ | ?????????????????????????????????????????????????? | | ?????????????????????????????????????????????????? | | ?????????????????????????????????????????????????? | | ?????????????????????????????????????????????????? | | ?????????????????????????????????????????????????? | | ?????????????????????????????????????????????????? | | ?????????????????????????????????????????????????? | | ?????????????????????????????????????????????????? | | ?????????????????????????????????????????????????? | | ?????????????????????????????????????????????????? | | ?????????????????????????????????????????????????? | | ?????????????????????????????????????????????????? | | ?????????????????????????##?#????????????????????? | | ????????????????????????# ""#???????????????????? | | ???????????????????????? #???????????????????? | | ???????????????????????? &###?????????????????? | | ????????????????####???# ##????????????????? | | ???????????????## ##?? " " ###??????????????? | | ???????????????? #?" ???????????????? | | ????????????????? ? ???????????????? | | ?????????????????? ? ??????????????? | | ??????????????????? ## # """""??????????????? | | ??????????????????## #?? < """"""#?###????????? | | ?????????????????## #???# #""""""" ##???????? | | ?????????????# ## #####[""#?"""?" #???????? | | ?????????????# ##@&%& "##"#?#" #???????? | | ?????????????#### R &R& ###"" #???????? | | ????????????????# ## = ##=%*= ##??????? | | ????????????????####?## ## | #??????? | | ??????????????????????## """ #??????? | | ???????????????????##### " "##??????? | | ??????????????????## ## ####???????? | | ?????????????????## ## #? #?????????? | | ?????????????????# %### # ##?????????? | | ?????????????????# ## #??????????? | | ?????????????????# % ??????????? | | ?????????????????# ## #?????????? | | ?????????????????## ### ###?# ?????????? | | ??????????????##### #######???? #????????? | | ???????????? """" &% ##?????????## #????????? | | ??????????? " "" %& ###?????????##????????? | | ??????????? ## ##** ##??????????????????? | | ??????????????## ## ##????? #??????????? | | ???????????????#### # ##?? #???????????? | | ??????????????????#?# # ## ####?????????? | | ????????????????????# ##????????? | | ????????????????????# #????????? | | ????????????????????###### ## ### # #????????? | | ?????????????????????????# ###??#???# ###??????? | | ?????????????????????????# #??????## #??????? | +----------------------------------------------------+ Best States ------------- Heat Dissipation 35 Energy Generation 15 Energy Capacity 265 Matter Stores 300 Matter Capacity 300 Sight Range 16 Terrain Scan Density 10 Armor Coverage 150 Evasion (%) 40 Recoil Reduction 2 Item Schematics ----------------- None Robot Schematics ------------------ None Fabricated ------------ Nothing Repaired ---------- Nothing Studied --------- None Alien Tech Used ----------------- None Achievements -------------- None Challenges ------------ None Game ------ Seed MappingDispersalArmor Manual? 0 Play Time 00:13:49 Cumulative 2327.6 hours Start 2026.09.11 @ 18:03:10 End 2026.09.11 @ 18:12:36 Sessions 1 Manual Loads 0 Difficulty Rogue Special Mode None Game No. 1445 Rogue 1441 Adventurer 4 Explorer 0 Win Type - Total 339 Types 254/15/27/11/4/1/6/10/7/4 Lore% 99 Gallery% 96 Achievement% 95 Wizard Run 0 Options --------- Layout 2 ASCII 0 Keyboard 1 Movement Vi Keybinds 0 Fullscreen 0 Font 24/Terminus Map View 59x48 Zoom Use 0% Tactical HUD 1 Map Filters NONE Filters NONE Steam 1 RUN: 895b7641-c1bd-462f-b0db-a9aebedeeb06